[Event "Early-Titled-Tuesday-Blitz-July-09-2024"]
[Site "Chess.com"]
[Date "2024.07.09"]
[Round "1"]
[White "albi1999"]
[Black "GM-2024-GM"]
[Result "1-0"]
[WhiteElo "2660"]
[BlackElo "2343"]
[TimeControl "180+1"]
[EndTime "8:07:02 PDT"]
[Termination "albi1999 won on time"]

1. Nf3 {[%clk 0:02:59.1]} 1... d5 {[%clk 0:02:59.7]} 2. g3 {[%clk 0:02:55.7]}
2... Nd7 {[%clk 0:02:59.6]} 3. d4 {[%clk 0:02:49.6]} 3... Ngf6 {[%clk
0:02:51.8]} 4. Bg2 {[%clk 0:02:46.8]} 4... e6 {[%clk 0:02:50.6]} 5. O-O {[%clk
0:02:46.6]} 5... Be7 {[%clk 0:02:49.9]} 6. c4 {[%clk 0:02:46.8]} 6... dxc4
{[%clk 0:02:49]} 7. Qc2 {[%clk 0:02:31.1]} 7... Nb6 {[%clk 0:02:38.3]} 8. Nbd2
{[%clk 0:02:30.6]} 8... O-O {[%clk 0:02:35.3]} 9. Nxc4 {[%clk 0:02:30.5]} 9...
Nxc4 {[%clk 0:02:35.7]} 10. Qxc4 {[%clk 0:02:31.4]} 10... a6 {[%clk 0:02:35.1]}
11. Bf4 {[%clk 0:02:30.5]} 11... Bd6 {[%clk 0:02:27.9]} 12. Rac1 {[%clk
0:02:26.8]} 12... b5 {[%clk 0:02:23.5]} 13. Qc2 {[%clk 0:02:20.2]} 13... Bb7
{[%clk 0:02:22.7]} 14. Rfd1 {[%clk 0:02:18.5]} 14... Be4 {[%clk 0:02:09.3]} 15.
Qd2 {[%clk 0:02:12.7]} 15... Rc8 {[%clk 0:01:58.9]} 16. Qa5 {[%clk 0:02:07]}
16... Bxf4 {[%clk 0:01:44.9]} 17. gxf4 {[%clk 0:02:05.3]} 17... Qd6 {[%clk
0:01:43.6]} 18. e3 {[%clk 0:02:00.6]} 18... Rfd8 {[%clk 0:01:12.3]} 19. Ne5
{[%clk 0:01:51.3]} 19... c5 {[%clk 0:01:00.5]} 20. Bxe4 {[%clk 0:01:09.6]} 20...
Nxe4 {[%clk 0:01:01.4]} 21. dxc5 {[%clk 0:00:52]} 21... Qxd1+ {[%clk 0:01:00.8]}
22. Rxd1 {[%clk 0:00:52.9]} 22... Rxd1+ {[%clk 0:01:01.1]} 23. Kg2 {[%clk
0:00:52.7]} 23... Rd2 {[%clk 0:00:24.4]} 24. Qxa6 {[%clk 0:00:31.4]} 24... Rxf2+
{[%clk 0:00:24]} 25. Kh3 {[%clk 0:00:30.9]} 25... Rd8 {[%clk 0:00:14.2]} 26. Qb7
{[%clk 0:00:30.1]} 26... Nxc5 {[%clk 0:00:03.5]} 27. Qxf7+ {[%clk 0:00:28.2]}
27... Kh8 {[%clk 0:00:03.9]} 28. Qe7 {[%clk 0:00:23.5]} 28... Rc8 {[%clk
0:00:04.1]} 29. Nf7+ {[%clk 0:00:19.5]} 29... Kg8 {[%clk 0:00:04.3]} 30. Ng5
{[%clk 0:00:20.4]} 30... h6 {[%clk 0:00:01.6]} 31. Nxe6 {[%clk 0:00:18.3]} 1-0

[Event "Early-Titled-Tuesday-Blitz-July-09-2024"]
[Site "Chess.com"]
[Date "2024.07.09"]
[Round "1"]
[White "GM_Huschenbeth"]
[Black "Nemegejas"]
[Result "0-1"]
[WhiteElo "2510"]
[BlackElo "2950"]
[TimeControl "180+1"]
[EndTime "8:07:09 PDT"]
[Termination "Nemegejas won on time"]

1. e4 {[%clk 0:03:00.9]} 1... c6 {[%clk 0:02:58.3]} 2. d4 {[%clk 0:02:59.5]}
2... d5 {[%clk 0:02:58.6]} 3. Nc3 {[%clk 0:02:56.3]} 3... dxe4 {[%clk
0:02:56.5]} 4. Nxe4 {[%clk 0:02:57.2]} 4... Nf6 {[%clk 0:02:56]} 5. Nxf6+ {[%clk
0:02:56.7]} 5... exf6 {[%clk 0:02:55.7]} 6. c3 {[%clk 0:02:56.8]} 6... Bd6
{[%clk 0:02:55.8]} 7. Bd3 {[%clk 0:02:57]} 7... O-O {[%clk 0:02:56.1]} 8. Qc2
{[%clk 0:02:57.2]} 8... Re8+ {[%clk 0:02:55.9]} 9. Ne2 {[%clk 0:02:57.3]} 9...
h5 {[%clk 0:02:56.2]} 10. O-O {[%clk 0:02:57.3]} 10... h4 {[%clk 0:02:49.7]} 11.
h3 {[%clk 0:02:57.5]} 11... Nd7 {[%clk 0:02:47.6]} 12. c4 {[%clk 0:02:57.5]}
12... Nf8 {[%clk 0:02:17.8]} 13. Bd2 {[%clk 0:02:51]} 13... Bd7 {[%clk
0:02:05.3]} 14. Rad1 {[%clk 0:02:49.7]} 14... Ng6 {[%clk 0:01:59.9]} 15. Nc3
{[%clk 0:02:34.2]} 15... Nf4 {[%clk 0:01:55.5]} 16. Bxf4 {[%clk 0:02:33.9]}
16... Bxf4 {[%clk 0:01:56.4]} 17. Bh7+ {[%clk 0:02:32.3]} 17... Kh8 {[%clk
0:01:55.7]} 18. Bf5 {[%clk 0:02:32.9]} 18... Be6 {[%clk 0:01:54.9]} 19. d5
{[%clk 0:02:28.6]} 19... cxd5 {[%clk 0:01:51.6]} 20. cxd5 {[%clk 0:02:20.4]}
20... Bxf5 {[%clk 0:01:46.8]} 21. Qxf5 {[%clk 0:02:21.3]} 21... Be5 {[%clk
0:01:45.4]} 22. Qh5+ {[%clk 0:01:51]} 22... Kg8 {[%clk 0:01:44.3]} 23. Qxh4
{[%clk 0:01:51.9]} 23... Qb6 {[%clk 0:01:38.9]} 24. Rd2 {[%clk 0:01:45.8]} 24...
Rac8 {[%clk 0:01:39.2]} 25. Ne4 {[%clk 0:01:27.5]} 25... Qa6 {[%clk 0:01:35.9]}
26. d6 {[%clk 0:01:20.9]} 26... Red8 {[%clk 0:01:35.9]} 27. d7 {[%clk 0:01:06]}
27... Rc6 {[%clk 0:01:12.9]} 28. f4 {[%clk 0:00:59.9]} 28... Bc7 {[%clk
0:01:09.2]} 29. Re1 {[%clk 0:00:57.6]} 29... Re6 {[%clk 0:00:57.9]} 30. f5
{[%clk 0:00:39.2]} 30... Re5 {[%clk 0:00:53.5]} 31. Rc1 {[%clk 0:00:27.6]} 31...
Ba5 {[%clk 0:00:38.3]} 32. Rd6 {[%clk 0:00:10.1]} 32... Qe2 {[%clk 0:00:35.9]}
33. Nf2 {[%clk 0:00:03.5]} 33... Rxf5 {[%clk 0:00:27.3]} 34. Rc8 {[%clk
0:00:01.1]} 34... Qe1+ {[%clk 0:00:18.7]} 35. Kh2 {[%clk 0:00:01.5]} 35... Rxf2
{[%clk 0:00:18.7]} 0-1

[Event "Early-Titled-Tuesday-Blitz-July-09-2024"]
[Site "Chess.com"]
[Date "2024.07.09"]
[Round "1"]
[White "arenal72"]
[Black "Witty_Alien"]
[Result "1-0"]
[WhiteElo "2709"]
[BlackElo "2398"]
[TimeControl "180+1"]
[EndTime "8:07:09 PDT"]
[Termination "arenal72 won by resignation"]

1. Nf3 {[%clk 0:03:00.9]} 1... Nf6 {[%clk 0:02:54.8]} 2. g3 {[%clk 0:03:00]}
2... g6 {[%clk 0:02:54.9]} 3. Bg2 {[%clk 0:03:00]} 3... Bg7 {[%clk 0:02:54.9]}
4. O-O {[%clk 0:03:00.6]} 4... O-O {[%clk 0:02:55.4]} 5. d3 {[%clk 0:03:01.1]}
5... d6 {[%clk 0:02:54.1]} 6. c4 {[%clk 0:03:00.3]} 6... c5 {[%clk 0:02:54.1]}
7. Nc3 {[%clk 0:02:59.5]} 7... Nc6 {[%clk 0:02:54.4]} 8. h3 {[%clk 0:02:56.5]}
8... h6 {[%clk 0:02:54]} 9. e4 {[%clk 0:02:56.2]} 9... e5 {[%clk 0:02:53.5]} 10.
Be3 {[%clk 0:02:56.6]} 10... Be6 {[%clk 0:02:53.4]} 11. Qd2 {[%clk 0:02:56.5]}
11... Qd7 {[%clk 0:02:43.4]} 12. Kh2 {[%clk 0:02:46.1]} 12... Kh7 {[%clk
0:02:42.9]} 13. Nd5 {[%clk 0:02:43.2]} 13... Bxd5 {[%clk 0:02:24.6]} 14. cxd5
{[%clk 0:02:38.4]} 14... Nd4 {[%clk 0:02:24.8]} 15. b4 {[%clk 0:02:32.4]} 15...
b6 {[%clk 0:02:14.5]} 16. bxc5 {[%clk 0:02:27.4]} 16... bxc5 {[%clk 0:02:14.3]}
17. Qa5 {[%clk 0:02:23.6]} 17... Nc2 {[%clk 0:01:52.6]} 18. Rab1 {[%clk
0:02:23.4]} 18... g5 {[%clk 0:01:37]} 19. Nd2 {[%clk 0:02:17]} 19... Rab8 {[%clk
0:01:18]} 20. Nc4 {[%clk 0:02:12]} 20... g4 {[%clk 0:01:12.1]} 21. h4 {[%clk
0:02:10.1]} 21... h5 {[%clk 0:00:42.1]} 22. Qc3 {[%clk 0:01:54.9]} 22... Qa4
{[%clk 0:00:26.6]} 23. Nxd6 {[%clk 0:01:46]} 23... Nxe3 {[%clk 0:00:19]} 24.
fxe3 {[%clk 0:01:43.7]} 24... Qxa2 {[%clk 0:00:13.4]} 25. Ra1 {[%clk 0:01:37.4]}
25... Qe2 {[%clk 0:00:11.9]} 26. Rfe1 {[%clk 0:01:34.7]} 26... Qf2 {[%clk
0:00:11.3]} 27. Rf1 {[%clk 0:01:31.7]} 27... Qe2 {[%clk 0:00:11.1]} 28. Rae1
{[%clk 0:01:30.7]} 28... Qb2 {[%clk 0:00:11.4]} 29. Qxb2 {[%clk 0:01:29.9]}
29... Rxb2 {[%clk 0:00:12.3]} 30. Ra1 {[%clk 0:01:24.6]} 30... Rfb8 {[%clk
0:00:12.2]} 31. Rxa7 {[%clk 0:01:19.6]} 31... Re2 {[%clk 0:00:12.8]} 32. Nxf7
{[%clk 0:01:15.9]} 32... Rbb2 {[%clk 0:00:12.8]} 33. Rg1 {[%clk 0:01:13.3]}
33... Rxe3 {[%clk 0:00:08.1]} 34. Nxe5 {[%clk 0:01:11.8]} 34... Ree2 {[%clk
0:00:01.8]} 35. d6 {[%clk 0:01:11.2]} 35... Rb8 {[%clk 0:00:01.1]} 36. Nc6
{[%clk 0:01:07.3]} 36... Rc8 {[%clk 0:00:01]} 37. e5 {[%clk 0:01:01.4]} 37...
Rxc6 {[%clk 0:00:01.4]} 38. exf6 {[%clk 0:01:01.2]} 38... Rxd6 {[%clk 0:00:02]}
39. Rxg7+ {[%clk 0:01:01]} 39... Kh8 {[%clk 0:00:02]} 40. Rg5 {[%clk 0:00:58.1]}
40... c4 {[%clk 0:00:02.3]} 41. dxc4 {[%clk 0:00:57.3]} 41... Rf2 {[%clk
0:00:02]} 42. Rxh5+ {[%clk 0:00:57.5]} 42... Kg8 {[%clk 0:00:02.4]} 43. Rd5
{[%clk 0:00:56.6]} 43... Re6 {[%clk 0:00:01.9]} 44. Rg5+ {[%clk 0:00:56.5]}
44... Kh7 {[%clk 0:00:01.1]} 45. Rxg4 {[%clk 0:00:57]} 45... Kh6 {[%clk
0:00:01.6]} 46. Kh3 {[%clk 0:00:56.8]} 46... Kh5 {[%clk 0:00:02.1]} 47. Rg5+
{[%clk 0:00:56.2]} 47... Kh6 {[%clk 0:00:02.8]} 48. Bd5 {[%clk 0:00:54]} 48...
Ree2 {[%clk 0:00:03.7]} 49. Rg2 {[%clk 0:00:54.2]} 49... Rxg2 {[%clk 0:00:03.3]}
50. Bxg2 {[%clk 0:00:55.1]} 50... Re4 {[%clk 0:00:02.9]} 51. Rh5+ {[%clk
0:00:53.2]} 51... Kg6 {[%clk 0:00:01.3]} 52. Bxe4+ {[%clk 0:00:53.2]} 1-0

[Event "Early-Titled-Tuesday-Blitz-July-09-2024"]
[Site "Chess.com"]
[Date "2024.07.09"]
[Round "1"]
[White "praveenb2002"]
[Black "RedFirePanda"]
[Result "1-0"]
[WhiteElo "2856"]
[BlackElo "2465"]
[TimeControl "180+1"]
[EndTime "8:07:10 PDT"]
[Termination "praveenb2002 won by resignation"]

1. c4 {[%clk 0:02:55.1]} 1... Nf6 {[%clk 0:02:54.8]} 2. Nc3 {[%clk 0:02:53.3]}
2... e6 {[%clk 0:02:48.8]} 3. e4 {[%clk 0:02:42.2]} 3... d5 {[%clk 0:02:43.2]}
4. e5 {[%clk 0:02:35.5]} 4... d4 {[%clk 0:02:40.2]} 5. exf6 {[%clk 0:02:35.6]}
5... dxc3 {[%clk 0:02:40.1]} 6. bxc3 {[%clk 0:02:35.6]} 6... Qxf6 {[%clk
0:02:38.8]} 7. d4 {[%clk 0:02:36.2]} 7... Nd7 {[%clk 0:02:30]} 8. Nf3 {[%clk
0:02:33.7]} 8... h6 {[%clk 0:02:28.3]} 9. Bd3 {[%clk 0:02:33.5]} 9... b6 {[%clk
0:02:24.1]} 10. Be4 {[%clk 0:02:32.3]} 10... Rb8 {[%clk 0:02:24.5]} 11. O-O
{[%clk 0:02:27.9]} 11... Bd6 {[%clk 0:02:20.3]} 12. Qa4 {[%clk 0:02:27.7]} 12...
a5 {[%clk 0:02:14.9]} 13. Bc6 {[%clk 0:02:22.6]} 13... Qe7 {[%clk 0:02:09.9]}
14. c5 {[%clk 0:02:05.1]} 14... bxc5 {[%clk 0:02:05.2]} 15. dxc5 {[%clk
0:02:06]} 15... Bxc5 {[%clk 0:02:03.5]} 16. Ne5 {[%clk 0:02:04.9]} 16... Bd6
{[%clk 0:01:53.6]} 17. Bf4 {[%clk 0:02:03.3]} 17... Bxe5 {[%clk 0:01:47.4]} 18.
Bxe5 {[%clk 0:02:02.5]} 18... O-O {[%clk 0:01:47.9]} 19. Bxc7 {[%clk 0:01:44.3]}
19... Rb2 {[%clk 0:01:29.7]} 20. Bxa5 {[%clk 0:01:40.7]} 20... Ne5 {[%clk
0:01:18.9]} 21. Bb4 {[%clk 0:01:34.9]} 21... Rxb4 {[%clk 0:01:14.5]} 22. cxb4
{[%clk 0:01:35.8]} 22... Nxc6 {[%clk 0:01:06]} 23. Qxc6 {[%clk 0:01:36.7]} 23...
Qxb4 {[%clk 0:01:06.4]} 24. Rab1 {[%clk 0:01:28.2]} 24... Qa3 {[%clk 0:01:05.2]}
25. Rb8 {[%clk 0:01:23.1]} 25... Ba6 {[%clk 0:00:56.6]} 26. Rxf8+ {[%clk
0:01:22]} 26... Kxf8 {[%clk 0:00:57.1]} 27. Qa8+ {[%clk 0:01:22.6]} 27... Ke7
{[%clk 0:00:57.1]} 28. Rd1 {[%clk 0:01:22.2]} 28... Kf6 {[%clk 0:00:47.8]} 29.
Qf3+ {[%clk 0:01:12.8]} 29... Qxf3 {[%clk 0:00:46]} 30. gxf3 {[%clk 0:01:13.7]}
30... Be2 {[%clk 0:00:46.1]} 31. Rd4 {[%clk 0:01:14.3]} 31... e5 {[%clk
0:00:42.5]} 32. Rb4 {[%clk 0:01:07.9]} 32... Bxf3 {[%clk 0:00:40.7]} 33. a4
{[%clk 0:01:08.4]} 33... Ke6 {[%clk 0:00:38.8]} 34. a5 {[%clk 0:01:08.6]} 34...
Kd7 {[%clk 0:00:37.9]} 35. a6 {[%clk 0:01:08.8]} 35... Kc7 {[%clk 0:00:35.7]}
36. Rb3 {[%clk 0:00:58.9]} 36... Bd5 {[%clk 0:00:31.6]} 37. Rb5 {[%clk
0:00:58.1]} 37... Bc6 {[%clk 0:00:29.6]} 38. a7 {[%clk 0:00:46.1]} 38... Bb7
{[%clk 0:00:20.3]} 39. Rxe5 {[%clk 0:00:45.9]} 39... Kb6 {[%clk 0:00:20.3]} 40.
Re7 {[%clk 0:00:42.7]} 40... Kxa7 {[%clk 0:00:12.3]} 41. Rxf7 {[%clk 0:00:42.2]}
41... g6 {[%clk 0:00:12.6]} 42. Rg7 {[%clk 0:00:40.8]} 42... g5 {[%clk
0:00:09.3]} 43. Rg6 {[%clk 0:00:41]} 43... Kb8 {[%clk 0:00:07.2]} 44. Rxh6
{[%clk 0:00:41.1]} 44... g4 {[%clk 0:00:07.7]} 45. h3 {[%clk 0:00:37.3]} 1-0

[Event "Early-Titled-Tuesday-Blitz-July-09-2024"]
[Site "Chess.com"]
[Date "2024.07.09"]
[Round "1"]
[White "ChEsper99"]
[Black "yaguigor"]
[Result "0-1"]
[WhiteElo "2252"]
[BlackElo "2600"]
[TimeControl "180+1"]
[EndTime "8:07:10 PDT"]
[Termination "yaguigor won by resignation"]

1. e4 {[%clk 0:02:56.5]} 1... e5 {[%clk 0:02:58]} 2. Nf3 {[%clk 0:02:55.8]} 2...
Nc6 {[%clk 0:02:58.6]} 3. Bc4 {[%clk 0:02:52.4]} 3... Bc5 {[%clk 0:02:57.5]} 4.
d3 {[%clk 0:02:50]} 4... Nf6 {[%clk 0:02:55.9]} 5. Nc3 {[%clk 0:02:50.5]} 5...
h6 {[%clk 0:02:54.4]} 6. h3 {[%clk 0:02:49.1]} 6... d6 {[%clk 0:02:50.1]} 7. Be3
{[%clk 0:02:48.6]} 7... O-O {[%clk 0:02:41.7]} 8. d4 {[%clk 0:02:28]} 8... exd4
{[%clk 0:02:40.5]} 9. Nxd4 {[%clk 0:02:27.5]} 9... Bb4 {[%clk 0:02:40.3]} 10.
Nxc6 {[%clk 0:02:23]} 10... bxc6 {[%clk 0:02:39]} 11. Bd3 {[%clk 0:02:10.3]}
11... Re8 {[%clk 0:02:35.8]} 12. Qf3 {[%clk 0:01:51.7]} 12... Qe7 {[%clk
0:02:27.1]} 13. O-O {[%clk 0:01:34.9]} 13... Bxc3 {[%clk 0:02:25.8]} 14. bxc3
{[%clk 0:01:34.3]} 14... Nxe4 {[%clk 0:02:26.5]} 15. Rfe1 {[%clk 0:01:28.7]}
15... d5 {[%clk 0:02:25.5]} 16. Bxe4 {[%clk 0:01:03.3]} 16... dxe4 {[%clk
0:02:20.2]} 17. Qg3 {[%clk 0:01:01.9]} 17... Kh7 {[%clk 0:02:11.5]} 18. Bf4
{[%clk 0:00:49.3]} 18... Bf5 {[%clk 0:02:06.6]} 19. Bxc7 {[%clk 0:00:46.1]}
19... Qf6 {[%clk 0:02:03.3]} 20. Rad1 {[%clk 0:00:43.1]} 20... Re6 {[%clk
0:01:52.8]} 21. Qf4 {[%clk 0:00:30]} 21... Rc8 {[%clk 0:01:36.5]} 22. g4 {[%clk
0:00:24.7]} 22... Bg6 {[%clk 0:01:34.1]} 23. Qxf6 {[%clk 0:00:24.5]} 23... Rxf6
{[%clk 0:01:27.7]} 24. Be5 {[%clk 0:00:24.4]} 24... Re6 {[%clk 0:01:23.3]} 25.
Bd4 {[%clk 0:00:21.6]} 25... c5 {[%clk 0:01:22.6]} 26. Be3 {[%clk 0:00:21.8]}
26... Ra6 {[%clk 0:01:20.9]} 27. Rd5 {[%clk 0:00:15.4]} 27... Rxa2 {[%clk
0:01:12.3]} 28. Rxc5 {[%clk 0:00:15.4]} 28... Rxc5 {[%clk 0:01:11.4]} 29. Bxc5
{[%clk 0:00:16.3]} 29... a5 {[%clk 0:01:11.4]} 30. Bb6 {[%clk 0:00:03.8]} 30...
a4 {[%clk 0:01:09.8]} 31. Rb1 {[%clk 0:00:04]} 31... Rxc2 {[%clk 0:01:04.9]} 32.
Ra1 {[%clk 0:00:04.3]} 32... Rxc3 {[%clk 0:01:03.9]} 33. Kg2 {[%clk 0:00:02.2]}
33... Rc4 {[%clk 0:01:03.7]} 34. Ba5 {[%clk 0:00:01.7]} 34... f6 {[%clk
0:00:59.2]} 35. Bd2 {[%clk 0:00:02.2]} 35... Be8 {[%clk 0:00:57.7]} 36. Ra3
{[%clk 0:00:02.1]} 36... Bc6 {[%clk 0:00:57.6]} 37. Be3 {[%clk 0:00:02.6]} 37...
Kg6 {[%clk 0:00:55.7]} 38. Kg3 {[%clk 0:00:03.1]} 38... h5 {[%clk 0:00:55.1]}
39. h4 {[%clk 0:00:02.6]} 39... hxg4 {[%clk 0:00:54.5]} 40. Kxg4 {[%clk
0:00:03.5]} 40... Rb4 {[%clk 0:00:45.1]} 41. Kg3 {[%clk 0:00:03.1]} 41... Kf5
{[%clk 0:00:43.8]} 42. Kg2 {[%clk 0:00:02.5]} 42... Kg4 {[%clk 0:00:41.5]} 0-1

[Event "Early-Titled-Tuesday-Blitz-July-09-2024"]
[Site "Chess.com"]
[Date "2024.07.09"]
[Round "1"]
[White "campochess"]
[Black "Kazmin_Semyon"]
[Result "0-1"]
[WhiteElo "2247"]
[BlackElo "2594"]
[TimeControl "180+1"]
[EndTime "8:07:14 PDT"]
[Termination "Kazmin_Semyon won by resignation"]

1. e4 {[%clk 0:02:59.2]} 1... e5 {[%clk 0:02:57.4]} 2. Bc4 {[%clk 0:02:57.8]}
2... Nf6 {[%clk 0:02:55.9]} 3. d3 {[%clk 0:02:58]} 3... c6 {[%clk 0:02:55.7]} 4.
Nc3 {[%clk 0:02:56.5]} 4... d5 {[%clk 0:02:55.7]} 5. exd5 {[%clk 0:02:56.7]}
5... cxd5 {[%clk 0:02:56.6]} 6. Bb5+ {[%clk 0:02:56.2]} 6... Nc6 {[%clk
0:02:56.9]} 7. Nf3 {[%clk 0:02:55.2]} 7... Bg4 {[%clk 0:02:54.8]} 8. Qe2 {[%clk
0:02:53]} 8... Bb4 {[%clk 0:02:53.3]} 9. Qxe5+ {[%clk 0:02:50.3]} 9... Be7
{[%clk 0:02:41.4]} 10. Bf4 {[%clk 0:02:44.8]} 10... O-O {[%clk 0:02:40.3]} 11.
Bxc6 {[%clk 0:02:42.8]} 11... bxc6 {[%clk 0:02:38.5]} 12. O-O {[%clk 0:02:31.8]}
12... Bxf3 {[%clk 0:02:37.9]} 13. gxf3 {[%clk 0:02:31.9]} 13... Qd7 {[%clk
0:02:36.7]} 14. Rfe1 {[%clk 0:02:28.6]} 14... Bb4 {[%clk 0:02:34.1]} 15. Re2
{[%clk 0:02:25.2]} 15... Qh3 {[%clk 0:02:23.2]} 16. Bg3 {[%clk 0:02:23.5]} 16...
Rae8 {[%clk 0:01:57.5]} 17. Qg5 {[%clk 0:02:20.9]} 17... h6 {[%clk 0:01:48.4]}
18. Qh4 {[%clk 0:02:18]} 18... Qxh4 {[%clk 0:01:34.4]} 19. Bxh4 {[%clk
0:02:17.8]} 19... Bxc3 {[%clk 0:01:34.9]} 20. Rxe8 {[%clk 0:02:16.6]} 20... Rxe8
{[%clk 0:01:35]} 21. bxc3 {[%clk 0:02:15.6]} 21... g5 {[%clk 0:01:35.6]} 22. Bg3
{[%clk 0:02:14.3]} 22... Re2 {[%clk 0:01:35.6]} 23. Rc1 {[%clk 0:02:09.2]} 23...
h5 {[%clk 0:01:36]} 24. Kf1 {[%clk 0:02:09.2]} 24... Re7 {[%clk 0:01:36.7]} 25.
Bd6 {[%clk 0:02:08.5]} 25... Rb7 {[%clk 0:01:33.5]} 26. Be5 {[%clk 0:02:08]}
26... Nd7 {[%clk 0:01:32.2]} 27. Bd6 {[%clk 0:02:06.2]} 27... Rb2 {[%clk
0:01:20.3]} 28. a3 {[%clk 0:02:05.2]} 28... Kg7 {[%clk 0:01:10.9]} 29. Ke2
{[%clk 0:01:55.6]} 29... Ra2 {[%clk 0:01:07.7]} 30. Kd2 {[%clk 0:01:55.1]} 30...
c5 {[%clk 0:01:08.1]} 31. Rb1 {[%clk 0:01:50.1]} 31... Kf6 {[%clk 0:01:08.5]}
32. Rb7 {[%clk 0:01:49]} 32... Ke6 {[%clk 0:01:09]} 33. Bc7 {[%clk 0:01:44.4]}
33... Rxa3 {[%clk 0:01:09.4]} 34. Bd8 {[%clk 0:01:39.5]} 34... Ne5 {[%clk
0:00:56.6]} 35. Re7+ {[%clk 0:01:29.8]} 35... Kd6 {[%clk 0:00:56.8]} 36. Re8
{[%clk 0:01:27.2]} 36... Nxf3+ {[%clk 0:00:45.5]} 37. Kc1 {[%clk 0:01:26.7]}
37... Ra1+ {[%clk 0:00:36.4]} 38. Kb2 {[%clk 0:01:26.5]} 38... Rh1 {[%clk
0:00:36.8]} 39. Rh8 {[%clk 0:01:21.5]} 39... Rxh2 {[%clk 0:00:33]} 40. Rh6+
{[%clk 0:01:19.8]} 40... Kd7 {[%clk 0:00:29.2]} 41. Ba5 {[%clk 0:01:15.6]} 41...
h4 {[%clk 0:00:25.5]} 42. Rf6 {[%clk 0:01:14.3]} 42... Rxf2 {[%clk 0:00:26.2]}
43. Rxf7+ {[%clk 0:01:14.1]} 43... Ke6 {[%clk 0:00:26.9]} 44. Rg7 {[%clk
0:01:10.1]} 44... h3 {[%clk 0:00:27.1]} 45. Rh7 {[%clk 0:01:08.9]} 45... g4
{[%clk 0:00:24.4]} 46. Bc7 {[%clk 0:01:08.4]} 46... Rg2 {[%clk 0:00:24.7]} 47.
Kb3 {[%clk 0:01:02.1]} 47... h2 {[%clk 0:00:21.7]} 48. Bxh2 {[%clk 0:01:00.1]}
48... Nxh2 {[%clk 0:00:21.6]} 49. Rxa7 {[%clk 0:00:59]} 49... g3 {[%clk
0:00:21.6]} 50. Rg7 {[%clk 0:00:58.5]} 50... Kf5 {[%clk 0:00:18.4]} 51. Ka4
{[%clk 0:00:55.3]} 51... Ng4 {[%clk 0:00:17.9]} 52. Rf7+ {[%clk 0:00:48.8]}
52... Kg6 {[%clk 0:00:17.6]} 53. Rf1 {[%clk 0:00:48.5]} 53... Rxc2 {[%clk
0:00:17.6]} 54. c4 {[%clk 0:00:46.1]} 54... dxc4 {[%clk 0:00:17.4]} 55. dxc4
{[%clk 0:00:46.2]} 55... Rxc4+ {[%clk 0:00:18.1]} 0-1

[Event "Early-Titled-Tuesday-Blitz-July-09-2024"]
[Site "Chess.com"]
[Date "2024.07.09"]
[Round "1"]
[White "AradNazari"]
[Black "SharathRk6"]
[Result "1-0"]
[WhiteElo "2803"]
[BlackElo "2447"]
[TimeControl "180+1"]
[EndTime "8:07:16 PDT"]
[Termination "AradNazari won by resignation"]

1. e4 {[%clk 0:03:00.9]} 1... e5 {[%clk 0:02:59]} 2. f4 {[%clk 0:02:57.3]} 2...
d5 {[%clk 0:02:58.1]} 3. exd5 {[%clk 0:02:50.4]} 3... exf4 {[%clk 0:02:57]} 4.
Nf3 {[%clk 0:02:49.9]} 4... Qxd5 {[%clk 0:02:50.1]} 5. Nc3 {[%clk 0:02:40]} 5...
Qe6+ {[%clk 0:02:22]} 6. Kf2 {[%clk 0:02:38.3]} 6... Be7 {[%clk 0:02:22.3]} 7.
Bb5+ {[%clk 0:02:29.5]} 7... c6 {[%clk 0:02:19.7]} 8. Re1 {[%clk 0:02:28.5]}
8... Qd6 {[%clk 0:02:15.7]} 9. Ba4 {[%clk 0:02:13.6]} 9... Nf6 {[%clk
0:02:13.5]} 10. Ne4 {[%clk 0:01:51.4]} 10... Nxe4+ {[%clk 0:01:54.7]} 11. Rxe4
{[%clk 0:01:52.3]} 11... Be6 {[%clk 0:01:43.1]} 12. d4 {[%clk 0:01:46.9]} 12...
O-O {[%clk 0:01:17.4]} 13. Bxf4 {[%clk 0:01:42.9]} 13... Qd8 {[%clk 0:01:05.3]}
14. Bb3 {[%clk 0:01:42.5]} 14... Bxb3 {[%clk 0:01:02.6]} 15. axb3 {[%clk
0:01:43.4]} 15... Bf6 {[%clk 0:01:02.1]} 16. c3 {[%clk 0:01:42.3]} 16... Nd7
{[%clk 0:01:00.7]} 17. Qe2 {[%clk 0:01:39]} 17... Nb6 {[%clk 0:00:56.4]} 18. c4
{[%clk 0:01:28.4]} 18... Qd7 {[%clk 0:00:44.2]} 19. Be5 {[%clk 0:01:17.1]} 19...
Bxe5 {[%clk 0:00:41.4]} 20. Rxe5 {[%clk 0:01:09.8]} 20... Rfe8 {[%clk
0:00:33.1]} 21. Re1 {[%clk 0:01:08.3]} 21... Rxe5 {[%clk 0:00:27.9]} 22. Qxe5
{[%clk 0:01:07.4]} 22... Rd8 {[%clk 0:00:27.6]} 23. Qe7 {[%clk 0:00:59.9]} 23...
h6 {[%clk 0:00:23.9]} 24. Qxd7 {[%clk 0:00:59.6]} 24... Rxd7 {[%clk 0:00:24.2]}
25. Re8+ {[%clk 0:00:58.3]} 25... Kh7 {[%clk 0:00:24.7]} 26. Rb8 {[%clk
0:00:58.3]} 26... a5 {[%clk 0:00:24.6]} 27. Ke2 {[%clk 0:00:46.8]} 27... Re7+
{[%clk 0:00:19.7]} 28. Kd2 {[%clk 0:00:40.2]} 28... Rd7 {[%clk 0:00:15.9]} 29.
Kc3 {[%clk 0:00:37.2]} 29... f5 {[%clk 0:00:12.7]} 30. b4 {[%clk 0:00:31.2]}
30... axb4+ {[%clk 0:00:12.2]} 31. Kxb4 {[%clk 0:00:31.5]} 31... Re7 {[%clk
0:00:12.7]} 32. b3 {[%clk 0:00:30.7]} 32... g5 {[%clk 0:00:09.2]} 33. Ka5 {[%clk
0:00:26.2]} 33... Nd7 {[%clk 0:00:05.2]} 34. Rxb7 {[%clk 0:00:26.2]} 34... Rf7
{[%clk 0:00:03.5]} 35. b4 {[%clk 0:00:23.8]} 35... Kg6 {[%clk 0:00:04]} 36. Rxd7
{[%clk 0:00:21.6]} 36... Rxd7 {[%clk 0:00:03.6]} 37. Ne5+ {[%clk 0:00:22.3]}
37... Kf6 {[%clk 0:00:04.1]} 38. Nxd7+ {[%clk 0:00:23]} 38... Ke6 {[%clk
0:00:04.3]} 39. Ne5 {[%clk 0:00:23.7]} 39... f4 {[%clk 0:00:05.2]} 40. b5 {[%clk
0:00:22.2]} 40... cxb5 {[%clk 0:00:05.3]} 41. cxb5 {[%clk 0:00:23.1]} 41... Kd5
{[%clk 0:00:05.7]} 42. b6 {[%clk 0:00:23.5]} 1-0